fUST/lending_fUST_20240325
["ID","MTS","AMOUNT","RATE_DAILY","PERIOD"]
[320391589,1711342239932,-9701.78,0.00057534,120]
[320391591,1711342239941,-500.0,0.00057534,120]
[320391593,1711342239950,-725.7,0.00057534,120]
[320391595,1711342239960,-2902.77,0.00057534,120]
[320391597,1711342239970,-965.64,0.00057534,120]
[320391599,1711342239981,-914.7,0.00057534,120]
[320391601,1711342239991,-1180.66,0.00057534,2]
[320391603,1711342240001,-846.38,0.00057534,120]
[320391605,1711342240011,-500.0,0.00057534,120]
[320391607,1711342240022,-763.09,0.00057534,120]
[320391609,1711342240033,-901.19,0.00057534,120]
[320391611,1711342240044,-1324.06,0.00057534,120]
[320391613,1711342240053,-500.0,0.00057534,120]
[320391615,1711342240062,-500.0,0.00057534,120]
[320391617,1711342240072,-3647.6,0.00057534,120]
[320391619,1711342240082,-500.0,0.00057534,120]
[320391621,1711342240091,-227.55004826,0.00057534,120]
[320391623,1711342240100,-500.0,0.00057534,120]
[320391625,1711342240110,-995.07,0.00057534,120]
[320391627,1711342240120,-3759.36,0.00057534,120]
[320391628,1711342240129,-500.0,0.00057534,120]
[320391630,1711342240138,-990.82,0.00057534,120]
[320391632,1711342240149,-2500.0,0.00057534,120]
[320391634,1711342240159,-3987.63,0.00058903,120]
[320391636,1711342240170,-261.967473,0.00059267,120]
[320391638,1711342240181,-1000.0,0.00059708,20]
[320391640,1711342240190,-17564.8,0.0006,120]
[320391642,1711342240199,-3003.32,0.00060172,120]
[320391644,1711342240208,-40816.51225432,0.00060173,2]
[320391646,1711342240218,-155.50642795,0.00060271,7]
[320391648,1711342240227,-787.93518183,0.00060271,7]
[320391650,1711342240237,-155.22747424,0.00060271,7]
[320391652,1711342240246,-158.75956349,0.00060272,7]
[320391654,1711342240255,-230.3535121,0.00060272,7]
[320391656,1711342240264,-3003.32,0.00060272,120]
[320391658,1711342240273,-3003.32,0.00060272,120]
[320391660,1711342240283,-3003.32,0.00060272,120]
[320391662,1711342240292,-500.0,0.00060273,120]
[320391664,1711342240301,-500.0,0.00060273,120]
[320391665,1711342240309,-530.84,0.00060273,120]
[320391667,1711342240319,-651.1,0.00060273,120]
[320391669,1711342240328,-500.0,0.00060273,120]
[320391671,1711342240337,-517.47696668,0.00060273,120]
[320391673,1711342240346,-500.0,0.00060273,120]
[320391675,1711342240355,-500.0,0.00060273,120]
[320391677,1711342240364,-500.0,0.00060273,120]
[320391679,1711342240373,-500.0,0.00060273,120]
[320391681,1711342240383,-500.0,0.00060273,120]
[320391683,1711342240392,-500.0,0.00060273,120]
[320391685,1711342240401,-500.0,0.00060273,120]
[320391687,1711342240410,-1168.08,0.00060273,120]
[320391689,1711342240421,-939.97,0.00060273,120]
[320391691,1711342240432,-500.0,0.00060273,120]
[320391693,1711342240441,-1610.24,0.00060273,120]
[320391695,1711342240450,-500.0,0.00060273,120]
[320391697,1711342240459,-661.09,0.00060273,120]
[320391699,1711342240468,-652.79,0.00060273,120]
[320391701,1711342240477,-550.35,0.00060273,120]
[320391703,1711342240486,-500.0,0.00060273,120]
[320391705,1711342240495,-500.0,0.00060273,120]
[320391706,1711342240504,-500.0,0.00060273,120]
[320391708,1711342240513,-500.0,0.00060273,120]
[320391710,1711342240522,-841.59,0.00060273,120]
[320391712,1711342240532,-975.91,0.00060273,120]
[320391714,1711342240540,-1437.82,0.00060273,120]
[320391716,1711342240550,-537.8,0.00060273,120]
[320391718,1711342240559,-667.16,0.00060273,120]
[320391720,1711342240568,-1634.86,0.00060273,120]
[320391722,1711342240578,-552.67,0.00060273,120]
[320391724,1711342240587,-765.61,0.00060273,120]
[320391726,1711342240597,-500.0,0.00060273,120]
[320391728,1711342240606,-570.75219556,0.00060273,120]
[320391730,1711342240616,-1633.51,0.00060273,120]
[320391732,1711342240626,-1094.03,0.00060273,120]
[320391734,1711342240636,-678.81,0.00060273,120]
[320391736,1711342240646,-500.0,0.00060273,120]
[320391738,1711342240656,-500.0,0.00060273,120]
[320391740,1711342240666,-1938.83,0.00060273,120]
[320391742,1711342240676,-500.0,0.00060273,120]
[320391744,1711342240685,-500.0,0.00060273,120]
[320391746,1711342240693,-1197.84,0.00060273,120]
[320391748,1711342240702,-874.15,0.00060273,120]
[320391750,1711342240713,-502.10153126,0.00060273,120]
[320391752,1711342240722,-500.0,0.00060273,120]
[320391753,1711342240731,-500.0,0.00060273,120]
[320391755,1711342240741,-8270.47,0.00060273,120]
[320391757,1711342240750,-9559.83,0.00060273,90]
[320391759,1711342240760,-1915.01,0.00060273,21]
[320391761,1711342240770,-500.0,0.00060273,120]
[320391763,1711342240779,-722.38,0.00060273,120]
[320391765,1711342240789,-500.0,0.00060273,120]
[320391767,1711342240798,-1366.31,0.00060273,120]
[320391769,1711342240808,-500.0,0.00060273,120]
[320391771,1711342240817,-1083.93,0.00060273,120]
[320391773,1711342240826,-1629.42,0.00060273,120]
[320391775,1711342240835,-1677.44,0.00060273,120]
[320391777,1711342240844,-9701.78,0.00060273,120]
[320391779,1711342240853,-725.7,0.00060273,120]
[320391781,1711342240862,-2902.77,0.00060273,120]
[320391783,1711342240871,-965.64,0.00060273,120]
[320391784,1711342240881,-914.7,0.00060273,120]
[320391786,1711342240890,-1180.66,0.00060273,2]
[320391788,1711342240899,-846.38,0.00060273,120]
[320391791,1711342240909,-3987.63,0.00060273,120]
[320391792,1711342240919,-763.09,0.00060273,120]
[320391794,1711342240929,-901.19,0.00060273,120]
[320391796,1711342240938,-1324.06,0.00060273,120]
[320391798,1711342240947,-219.1224366,0.00060273,120]
[320391800,1711342240956,-3647.6,0.00060273,120]
[320391802,1711342240965,-586.00397622,0.00060273,120]
[320391804,1711342240975,-995.07,0.00060273,120]
[320391806,1711342240983,-3759.36,0.00060273,120]
[320391808,1711342240993,-990.82,0.00060273,120]
[320391810,1711342241002,-1864.27030738,0.00060273,120]
[320391812,1711342241011,-1000.0,0.00061503,50]
[320391814,1711342241021,-3987.63,0.00061643,120]
[320391816,1711342241030,-160.0,0.00062014,3]
[320391818,1711342241039,-155.53665283,0.00062382,120]
[320391820,1711342241048,-3003.32,0.00062799,120]
[320391822,1711342241058,-39453.1010248,0.000628,120]
[320391823,1711342241067,-2447.41797738,0.00062913,2]
[320391825,1711342241076,-1000.0,0.00062937,60]
[320391827,1711342241085,-412.52107908,0.00063011,2]
[320391829,1711342241094,-353.51778671,0.00063011,7]
[320391831,1711342241103,-304.34308928,0.00063012,2]
[320391832,1711342241113,-193.94645703,0.00063012,7]
[320391833,1711342241123,-487.92325292,0.00063012,7]
[320391834,1711342241134,-3003.32,0.00063012,120]
[320391835,1711342241144,-3003.32,0.00063012,120]
[320391836,1711342241153,-513.70817895,0.00063013,120]
[320391837,1711342241162,-500.0,0.00063013,120]
[320391838,1711342241173,-530.84,0.00063013,120]
[320391839,1711342241182,-651.1,0.00063013,120]
[320391840,1711342241191,-500.0,0.00063013,120]
[320391841,1711342241200,-500.0,0.00063013,120]
[320391842,1711342241210,-500.0,0.00063013,120]
[320391843,1711342241221,-500.0,0.00063013,120]
[320391844,1711342241231,-500.0,0.00063013,120]
[320391845,1711342241240,-500.0,0.00063013,120]
[320391846,1711342241251,-500.0,0.00063013,120]
[320391847,1711342241260,-500.0,0.00063013,120]
[320391848,1711342241270,-1168.08,0.00063013,120]
[320391849,1711342241280,-939.97,0.00063013,120]
[320391850,1711342241290,-500.0,0.00063013,120]
[320391851,1711342241299,-1610.24,0.00063013,120]
[320391852,1711342241309,-500.0,0.00063013,120]
[320391853,1711342241320,-661.09,0.00063013,120]
[320391854,1711342241330,-652.79,0.00063013,120]
[320391855,1711342241340,-550.35,0.00063013,120]
[320391856,1711342241349,-500.0,0.00063013,120]
[320391857,1711342241359,-643.27670484,0.00063013,120]
[320391858,1711342241369,-500.0,0.00063013,120]
[320391860,1711342241378,-500.0,0.00063013,120]
[320391862,1711342241387,-841.59,0.00063013,120]
[320391864,1711342241397,-975.91,0.00063013,120]
[320391866,1711342241406,-1437.82,0.00063013,120]
[320391867,1711342241416,-537.8,0.00063013,120]
[320391869,1711342241426,-667.16,0.00063013,120]
[320391872,1711342241435,-1634.86,0.00063013,120]
[320391873,1711342241446,-552.67,0.00063013,120]
[320391875,1711342241455,-765.61,0.00063013,120]
[320391877,1711342241465,-500.0,0.00063013,120]
[320391879,1711342241474,-1633.51,0.00063013,120]
[320391881,1711342241483,-1094.03,0.00063013,120]
[320391883,1711342241492,-678.81,0.00063013,120]
[320391885,1711342241501,-500.0,0.00063013,120]
[320391887,1711342241510,-500.0,0.00063013,120]
[320391889,1711342241520,-1938.83,0.00063013,120]
[320391891,1711342241529,-500.0,0.00063013,120]
[320391893,1711342241538,-500.0,0.00063013,120]
[320391895,1711342241547,-1197.84,0.00063013,120]
[320391897,1711342241556,-500.0,0.00063013,120]
[320391899,1711342241566,-874.15,0.00063013,120]
[320391901,1711342241575,-500.0,0.00063013,120]
[320391903,1711342241584,-8270.47,0.00063013,120]
[320391905,1711342241593,-9559.83,0.00063013,90]
[320391907,1711342241605,-1915.01,0.00063013,21]
[320391909,1711342241615,-500.0,0.00063013,120]
[320391911,1711342241625,-722.38,0.00063013,120]
[320391913,1711342241634,-500.0,0.00063013,120]
[320391915,1711342241643,-1366.31,0.00063013,120]
[320391918,1711342241653,-500.0,0.00063013,120]
[320391920,1711342241662,-1083.93,0.00063013,120]
[320391921,1711342241672,-1629.42,0.00063013,120]
[320391923,1711342241682,-1677.44,0.00063013,120]
[320391925,1711342241691,-9701.78,0.00063013,120]
[320391928,1711342241700,-725.7,0.00063013,120]
[320391929,1711342241710,-2902.77,0.00063013,120]
[320391932,1711342241719,-965.64,0.00063013,120]
[320391934,1711342241728,-914.7,0.00063013,120]
[320391936,1711342241737,-1180.66,0.00063013,2]
[320391937,1711342241747,-846.38,0.00063013,120]
[320391939,1711342241756,-3987.63,0.00063013,120]
[320391941,1711342241765,-763.09,0.00063013,120]
[320391943,1711342241774,-901.19,0.00063013,120]
[320391945,1711342241784,-1324.06,0.00063013,120]
[320391947,1711342241793,-3647.6,0.00063013,120]
[320391949,1711342241803,-995.07,0.00063013,120]
[320391951,1711342241813,-3759.36,0.00063013,120]
[320391953,1711342241823,-990.82,0.00063013,120]
[320391955,1711342241832,-160.0,0.00063445,4]
[320391957,1711342241841,-2000.0,0.000638,120]
[320391959,1711342241850,-1000.0,0.000638,120]
[320391961,1711342241859,-3003.32,0.00063999,120]
[320391975,1711342241974,-1500.51268346,0.00064,120]
[320391977,1711342241984,-1000.0,0.00064,120]
[320391979,1711342241993,-10000.0,0.00064,20]
[320391981,1711342242002,-400.0,0.000642,40]
[320391983,1711342242011,-1000.0,0.00064316,80]
[320391985,1711342242020,-3987.63,0.00064383,120]
[320391987,1711342242029,-176.40213517,0.0006441,12]
[320391989,1711342242038,-10533.17865751,0.00064606,120]
[320392001,1711342242145,-20000.261286,0.00064606,120]
[320392178,1711342243681,-0.06880142,0.00054794,120]
[320392381,1711342246278,-6202.78119858,0.00054794,120]
[320392383,1711342246289,-1361.26,0.00054794,120]
[320392385,1711342246299,-500.0,0.00054794,120]
[320392387,1711342246309,-961.28,0.00054794,120]
[320392389,1711342246319,-6202.85,0.00057534,120]
[320392391,1711342246328,-1361.26,0.00057534,120]
[320392393,1711342246338,-6202.85,0.00060273,120]
[320392395,1711342246348,-1361.26,0.00060273,120]
[320392397,1711342246357,-6202.85,0.00063013,120]
[320392399,1711342246366,-1361.26,0.00063013,120]
[320392401,1711342246375,-16352.15811412,0.00064606,120]
[320392403,1711342246385,-46885.59805763,0.00064635,120]
[320392405,1711342246395,-46885.59805763,0.00064638,120]
[320392407,1711342246404,-12282.71698204,0.00064642,120]
[320393067,1711343012689,-174.644982,0.00053096,120]
[320393068,1711343012714,-74940.41019617,0.00054362,120]
[320393069,1711343012738,-11510.79843404,0.00054377,120]
[320393070,1711343012760,-22953.2757193,0.00054381,120]
[320393071,1711343127616,-51987.13447687,0.00054381,120]
[320393072,1711343127643,-63258.62485464,0.00054386,120]
[320393074,1711343248166,-166.666666,0.00051898,2]
[320393075,1711343248187,-250.0,0.00053124,2]
[320393076,1711343248208,-7282.6001994,0.00053173,2]
[320393077,1711343248227,-798.2124528,0.00053185,2]
[320393078,1711343248246,-384.3887951,0.00053213,2]
[320393079,1711343248267,-200.0,0.00053234,2]
[320393080,1711343248288,-222.380226,0.00053253,2]
[320393081,1711343248307,-11005.4280407,0.00053722,120]
[320393082,1711343252114,-3486.68400689,0.00053722,120]
[320393083,1711343252135,-7511.26869144,0.00054386,120]
[320393084,1711343347178,-222.380226,0.00053794,2]
[320393087,1711343370069,174.644982,0.00053794,120]
[320393088,1711343373128,-2400.25156271,0.00054362,120]
[320393089,1711343373150,-2400.25156271,0.00054382,120]
[320393090,1711343373172,-4170.51665009,0.00054386,120]
[320393091,1711343373196,-11510.79843404,0.00054388,120]
[320393092,1711343373218,-2400.25156271,0.00054391,120]
[320393093,1711343373238,-11510.79843404,0.00054392,120]
[320393094,1711343373258,-903.26022556,0.00054792,4]
[320393095,1711343373279,-155.11893532,0.00054792,4]
[320393096,1711343373300,-326.73704262,0.00054792,4]
[320393097,1711343373320,-2174.12211967,0.00054793,4]
[320393098,1711343373340,-500.0,0.00054793,120]
[320393099,1711343373360,-500.0,0.00054793,120]
[320393100,1711343373382,-372.15779824,0.00054793,120]
[320393101,1711343373401,-343.46476598,0.00054793,120]
[320393102,1711343373422,-389.52428201,0.00054793,120]
[320393103,1711343373444,-26409.72,0.00054793,120]
[320393104,1711343373465,-12345.8856243,0.00054793,120]
[320393105,1711343429554,500.91234155,0.00053939,30]
[320393259,1711343438235,-5277.84035624,0.00030797,2]
[320393260,1711343438246,-755.04298063,0.00054792,4]
[320393261,1711343438257,-14063.8343757,0.00054793,120]
[320393262,1711343438267,-289.09981388,0.00054794,120]
[320393263,1711343438279,-666.17,0.00054794,120]
[320393264,1711343438289,-500.0,0.00054794,120]
[320393266,1711343438299,-500.0,0.00054794,120]
[320393267,1711343438308,-500.0,0.00054794,120]
[320393268,1711343438318,-500.0,0.00054794,120]
[320393269,1711343438327,-500.0,0.00054794,120]
[320393270,1711343438337,-500.0,0.00054794,120]
[320393271,1711343438346,-500.0,0.00054794,120]
[320393272,1711343438356,-550.91,0.00054794,120]
[320393273,1711343438366,-499.65470183,0.00054794,120]
[320393274,1711343438375,-500.0,0.00054794,120]
[320393275,1711343438385,-500.0,0.00054794,120]
[320393276,1711343438394,-500.0,0.00054794,120]
[320393277,1711343438403,-500.0,0.00054794,120]
[320393278,1711343438413,-500.0,0.00054794,120]
[320393279,1711343438423,-1274.59,0.00054794,120]
[320393280,1711343438432,-500.0,0.00054794,120]
[320393281,1711343438442,-500.0,0.00054794,120]
[320393282,1711343438451,-500.0,0.00054794,120]
[320393283,1711343438461,-500.0,0.00054794,120]
[320393284,1711343438470,-500.0,0.00054794,120]
[320393285,1711343438480,-500.98504264,0.00054794,120]
[320393286,1711343438489,-500.0,0.00054794,120]
[320393287,1711343438500,-503.28767163,0.00054794,120]
[320393288,1711343438514,-500.0,0.00054794,120]
[320393289,1711343438524,-500.0,0.00054794,120]
[320393290,1711343438533,-500.0,0.00054794,120]
[320393291,1711343438543,-500.0,0.00054794,120]
[320393292,1711343438552,-501.9996123,0.00054794,120]
[320393293,1711343438561,-500.0,0.00054794,120]
[320393294,1711343438571,-500.63166868,0.00054794,120]
[320393295,1711343438582,-500.0,0.00054794,120]
[320393296,1711343438591,-500.0,0.00054794,120]
[320393297,1711343438600,-500.0,0.00054794,120]
[320393298,1711343438609,-500.0,0.00054794,120]
[320393299,1711343438620,-500.0,0.00054794,120]
[320393300,1711343438630,-195.41239201,0.00054794,120]
[320393301,1711343438639,-500.0,0.00054794,120]
[320393302,1711343438648,-500.0,0.00054794,120]
[320393303,1711343438657,-500.0,0.00054794,120]
[320393304,1711343438668,-500.0,0.00054794,120]
[320393305,1711343438677,-500.0,0.00054794,120]
[320393306,1711343438686,-500.0,0.00054794,120]
[320393307,1711343438696,-500.0,0.00054794,120]
[320393308,1711343438704,-500.0,0.00054794,120]
[320393309,1711343438714,-500.0,0.00054794,120]
[320393310,1711343438723,-500.0,0.00054794,120]
[320393311,1711343438732,-500.0,0.00054794,120]
[320393312,1711343438741,-500.0,0.00054794,120]
[320393313,1711343438750,-500.0,0.00054794,120]
[320393314,1711343438761,-943.58,0.00054794,120]
[320393315,1711343438770,-1146.27,0.00054794,120]
[320393316,1711343438780,-500.0,0.00054794,120]
[320393317,1711343438789,-500.0,0.00054794,120]
[320393318,1711343438798,-500.0,0.00054794,120]
[320393319,1711343438807,-500.0,0.00054794,120]
[320393320,1711343438816,-1542.62,0.00054794,120]
[320393321,1711343438826,-500.0,0.00054794,120]
[320393322,1711343438835,-654.11,0.00054794,120]
[320393323,1711343438844,-874.17,0.00054794,120]
[320393324,1711343438853,-777.11,0.00054794,120]
[320393325,1711343438862,-500.0,0.00054794,120]
[320393326,1711343438872,-500.0,0.00054794,120]
[320393327,1711343438881,-500.0,0.00054794,120]
[320393328,1711343438891,-500.0,0.00054794,120]
[320393329,1711343438900,-500.0,0.00054794,120]
[320393330,1711343438909,-545.7747223,0.00054794,120]
[320393331,1711343438918,-500.0,0.00054794,120]
[320393332,1711343438927,-500.0,0.00054794,120]
[320393333,1711343438936,-870.8,0.00054794,120]
[320393334,1711343438945,-775.72,0.00054794,120]
[320393335,1711343438954,-500.0,0.00054794,120]
[320393336,1711343438963,-795.45,0.00054794,120]
[320393337,1711343438972,-1454.41,0.00054794,120]
[320393338,1711343438981,-593.39,0.00054794,120]
[320393339,1711343438991,-500.0,0.00054794,120]
[320393340,1711343439000,-500.0,0.00054794,120]
[320393341,1711343439011,-518.35,0.00054794,120]
[320393342,1711343439020,-500.0,0.00054794,120]
[320393343,1711343439029,-500.0,0.00054794,120]
[320393344,1711343439038,-719.93,0.00054794,120]
[320393345,1711343439047,-500.0,0.00054794,120]
[320393346,1711343439056,-500.0,0.00054794,120]
[320393347,1711343439065,-500.0,0.00054794,120]
[320393348,1711343439074,-500.0,0.00054794,120]
[320393349,1711343439083,-500.0,0.00054794,120]
[320393350,1711343439092,-500.0,0.00054794,120]
[320393351,1711343439102,-500.0,0.00054794,120]
[320393352,1711343439112,-500.0,0.00054794,120]
[320393353,1711343439121,-500.0,0.00054794,120]
[320393354,1711343439130,-500.0,0.00054794,120]
[320393355,1711343439140,-1334.23,0.00054794,120]
[320393356,1711343439149,-7066.18,0.00054794,120]
[320393357,1711343439158,-857.37,0.00054794,120]
[320393358,1711343439167,-500.0,0.00054794,120]
[320393359,1711343439176,-500.0,0.00054794,120]
[320393360,1711343439185,-9355.74,0.00054794,90]
[320393361,1711343439194,-500.0,0.00054794,120]
[320393362,1711343439203,-500.0,0.00054794,120]
[320393363,1711343439212,-252.3081089,0.00054794,120]
[320393364,1711343439221,-500.0,0.00054794,120]
[320393365,1711343439232,-500.0,0.00054794,120]
[320393366,1711343439242,-500.0,0.00054794,120]
[320393367,1711343439251,-500.0,0.00054794,120]
[320393368,1711343439261,-500.0,0.00054794,120]
[320393369,1711343439270,-500.0,0.00054794,120]
[320393370,1711343439279,-500.0,0.00054794,120]
[320393371,1711343439288,-1875.59,0.00054794,21]
[320393372,1711343439297,-500.0,0.00054794,120]
[320393373,1711343439306,-704.96,0.00054794,120]
[320393374,1711343439315,-506.66388332,0.00054794,120]
[320393375,1711343439324,-500.0,0.00054794,120]
[320393376,1711343439334,-500.0,0.00054794,120]
[320393377,1711343439343,-1335.92,0.00054794,120]
[320393378,1711343439352,-500.0,0.00054794,120]
[320393379,1711343439361,-1068.27,0.00054794,120]
[320393380,1711343439370,-500.0,0.00054794,120]
[320393381,1711343439380,-541.64,0.00054794,120]
[320393382,1711343439390,-500.0,0.00054794,120]
[320393383,1711343439402,-2366.73009273,0.00054794,120]
[320393384,1711343439416,-6580.00990727,0.00054794,120]
[320393385,1711343439426,-287.57657146,0.00054794,120]
[320393386,1711343439435,-1699.11,0.00054794,120]
[320393387,1711343439444,-755.19,0.00054794,120]
[320393388,1711343439453,-500.0,0.00054794,60]
[320393389,1711343439462,-2002.02,0.00054794,120]
[320393390,1711343439472,-956.36,0.00054794,120]
[320393391,1711343439481,-500.0,0.00054794,120]
[320393392,1711343439490,-500.0,0.00054794,120]
[320393393,1711343439501,-500.0,0.00054794,120]
[320393394,1711343439512,-929.76,0.00054794,120]
[320393395,1711343439521,-3164.85,0.00054794,120]
[320393396,1711343439531,-1303.18,0.00054794,2]
[320393397,1711343439540,-500.0,0.00054794,120]
[320393398,1711343439550,-500.0,0.00054794,120]
[320393399,1711343439559,-840.51,0.00054794,120]
[320393400,1711343439569,-500.0,0.00054794,120]
[320393401,1711343439579,-938.81,0.00054794,120]
[320393402,1711343439589,-507.35109537,0.00054794,120]
[320393403,1711343439598,-500.0,0.00054794,120]
[320393404,1711343439608,-504.94872063,0.00054794,120]
[320393405,1711343439617,-500.0,0.00054794,120]
[320393406,1711343439626,-850.4,0.00054794,120]
[320393407,1711343439635,-805.24092447,0.00054794,120]
[320393465,1711343447189,-504.79907553,0.00054794,120]
[320393466,1711343447199,-2500.0,0.00054794,120]
[320393467,1711343447208,-500.0,0.00054794,120]
[320393468,1711343447217,-3283.81,0.00054794,120]
[320393469,1711343447228,-500.0,0.00054794,120]
[320393470,1711343447237,-500.0,0.00054794,120]
[320393471,1711343447246,-1314.62,0.00054794,120]
[320393472,1711343447255,-936.35,0.00054794,120]
[320393473,1711343447265,-500.0,0.00054794,120]
[320393474,1711343447274,-998.0,0.00054794,120]
[320393475,1711343447285,-3564.56,0.00054794,120]
[320393476,1711343447294,-1020.52,0.00054794,120]
[320393477,1711343447302,-637.37,0.00054794,120]
[320393478,1711343447312,-500.0,0.00054794,120]
[320393479,1711343447321,-506.29417019,0.00054794,120]
[320393480,1711343447330,-2002.8,0.00054794,120]
[320393481,1711343447339,-500.0,0.00054794,120]
[320393482,1711343447349,-502.31086731,0.00054794,120]
[320393483,1711343447358,-500.0,0.00054794,120]
[320393484,1711343447367,-500.0,0.00054794,120]
[320393485,1711343447376,-500.0,0.00054794,120]
[320393486,1711343447385,-867.73,0.00054794,120]
[320393487,1711343447394,-500.0,0.00054794,120]
[320393488,1711343447403,-7676.05,0.00054794,120]
[320393489,1711343447413,-822.70102543,0.00055676,61]
[320393490,1711343447422,-9268.16135969,0.00055676,120]
[320393492,1711344113825,-402.0,0.0004,120]
[320393493,1711344113848,-500.0,0.0005,120]
[320393494,1711344113869,-32794.81306346,0.0005,44]
[320393495,1711344350104,-902.0,0.0005,44]
[320393496,1711344350124,-168.5144892,0.00052673,2]
[320393497,1711344350144,-174.644982,0.00053598,120]
[320393498,1711344350163,-291.3455022,0.00053731,2]
[320393499,1711344350184,-1358.29697667,0.00054347,120]
[320393500,1711344445090,-4184.16275224,0.00054347,120]
[320393501,1711344450119,-107120.62616109,0.00054347,120]
[320393502,1711344450139,-18060.24182652,0.0005435,120]
[320393568,1711344632452,-1978.3642391,0.0005435,120]
[320393599,1711344638401,-349.42,0.0005435,120]
[320393600,1711344638445,-50000.0,0.0005435,120]
[320393616,1711344645032,-5511.86508368,0.0005435,120]
[320393642,1711345171996,5130.93379664,0.00025,2]
[320393643,1711345202927,4783.38543589,0.0002475,2]
[320393645,1711345243060,15987.48578878,0.00025,2]
[320393646,1711345257002,15795.40820701,0.0002475,2]
[320393704,1711345539172,-289.48019501,0.00025358,2]
[320393757,1711345757134,-154.81422293,0.00025101,2]
[320393758,1711345757158,-154.81422293,0.00025102,2]
[320393759,1711345757181,-471.05027514,0.00025103,2]
[320393760,1711345757205,-920.79514438,0.00025103,2]
[320393761,1711345757231,-154.81422293,0.00025103,2]
[320393762,1711345757255,-4704.74879012,0.00025104,2]
[320393763,1711345757276,-160.87070723,0.00025342,2]
[320393764,1711345757296,-154.81422293,0.00025343,2]
[320393765,1711345757318,-1922.02642136,0.00025344,2]
[320393766,1711345757340,-683.96804349,0.00025344,2]
[320393767,1711345757363,-19180.88471903,0.00025358,2]
[320393768,1711345757386,-877.46470654,0.00028182,2]
[320393769,1711345757407,-150.59564405,0.00028183,2]
[320393770,1711345757428,-150.59564405,0.0002856,2]
[320393771,1711345757449,-150.59564405,0.00028824,2]
[320393772,1711345757472,-150.80395486,0.00031118,2]
[320393773,1711345757494,-301.60790972,0.00031641,4]
[320393774,1711345757517,-603.21581943,0.00032173,7]
[320393775,1711345757541,-172.980765,0.00032515,2]
[320393776,1711345757566,-677.7441716,0.00032592,2]
[320393777,1711345757588,-1206.43163887,0.00032987,30]
[320393778,1711345757610,-150.59564405,0.00033191,7]
[320393779,1711345757632,-166.666666,0.0003576,2]
[320393780,1711345757654,-865.39980906,0.00035959,4]
[320393781,1711345757674,-151.77830393,0.0003596,7]
[320393782,1711345757694,-151.77830393,0.0003702,7]
[320393783,1711345757714,-151.77830393,0.00037153,7]
[320393784,1711345757735,-380.0,0.00037959,2]
[320393785,1711345757756,-375.9972469,0.00037997,2]
[320393786,1711345757777,-607.94320575,0.00037999,4]
[320393787,1711345757796,-948.20740097,0.00038,4]
[320393788,1711345757818,-2412.86327774,0.00039957,120]
[320393789,1711345757839,-274.04408717,0.00040498,4]
[320393790,1711345757860,-45778.5106016,0.00040499,4]
[320393791,1711345760194,-154.81422293,0.00025101,2]
[320393792,1711345760220,-2000.0,0.00029546,2]
[320393793,1711345760241,-4345.50944473,0.00040499,4]
[320393794,1711345762187,-2000.0,0.00029646,2]
[320393795,1711345762206,-2000.0,0.00029746,2]
[320393796,1711345762226,-2000.0,0.00029846,2]
[320393797,1711345762248,-23255.20917892,0.00040499,4]
[320393798,1711345762269,-1205.20024178,0.000405,30]